[Event "Titled Tuesday Blitz January 18 2022"]
[White "Kucuksari, Kaan"]
[Black "Rustemov, Alexander"]
[WhiteFideId "6380166"]
[BlackFideId "4119002"]
[WhiteElo "2305"]
[BlackElo "2880"]
[Result "1/2-1/2"]
[Round "08"]
[TimeControl "180+1"]
[Date "2022.01.18"]
[WhiteClock "0:00:03"]
[BlackClock "0:00:10"]

1. d4 {[%clk 0:03:00]}  d5 {[%clk 0:02:59]} 2. c4 {[%clk 0:02:59]}  dxc4 {[%clk 0:03:00]} 3. Nf3 {[%clk 0:02:58]}  Nf6 {[%clk 0:03:01]} 4. e3 {[%clk 0:02:57]}  e6 {[%clk 0:03:01]} 5. Bxc4 {[%clk 0:02:57]}  c5 {[%clk 0:03:01]} 6. O-O {[%clk 0:02:58]}  a6 {[%clk 0:03:02]} 7. b3 {[%clk 0:02:57]}  b6 {[%clk 0:03:00]} 8. Bb2 {[%clk 0:02:56]}  Bb7 {[%clk 0:03:01]} 9. Nbd2 {[%clk 0:02:51]}  Nbd7 {[%clk 0:03:00]} 10. Rc1 {[%clk 0:02:48]}  Be7 {[%clk 0:03:00]} 11. Bd3 {[%clk 0:02:45]}  O-O {[%clk 0:03:00]} 12. Bb1 {[%clk 0:02:45]}  Rc8 {[%clk 0:02:53]} 13. Nc4 {[%clk 0:02:44]}  b5 {[%clk 0:02:39]} 14. Nce5 {[%clk 0:02:42]}  cxd4 {[%clk 0:02:37]} 15. Qxd4 {[%clk 0:02:37]}  Nxe5 {[%clk 0:02:35]} 16. Nxe5 {[%clk 0:02:28]}  Qxd4 {[%clk 0:02:33]} 17. Bxd4 {[%clk 0:02:29]}  Ba3 {[%clk 0:02:30]} 18. Rxc8 {[%clk 0:02:10]}  Rxc8 {[%clk 0:02:31]} 19. f3 {[%clk 0:02:07]}  Nd5 {[%clk 0:02:28]} 20. Kf2 {[%clk 0:01:55]}  f6 {[%clk 0:02:27]} 21. Nd3 {[%clk 0:01:45]}  e5 {[%clk 0:02:15]} 22. Bb2 {[%clk 0:01:43]}  Bxb2 {[%clk 0:02:09]} 23. Nxb2 {[%clk 0:01:44]}  Nc3 {[%clk 0:02:09]} 24. Bf5 {[%clk 0:01:23]}  Rd8 {[%clk 0:02:05]} 25. Nd3 {[%clk 0:01:12]}  Nxa2 {[%clk 0:01:57]} 26. Be6+ {[%clk 0:01:05]}  Kf8 {[%clk 0:01:56]} 27. Nc5 {[%clk 0:01:06]}  Bc8 {[%clk 0:01:54]} 28. Ra1 {[%clk 0:00:45]}  Nb4 {[%clk 0:01:45]} 29. Rc1 {[%clk 0:00:19]}  Ke7 {[%clk 0:01:43]} 30. Bg4 {[%clk 0:00:09]}  Bxg4 {[%clk 0:01:36]} 31. fxg4 {[%clk 0:00:10]}  Rc8 {[%clk 0:01:37]} 32. Ke2 {[%clk 0:00:11]}  a5 {[%clk 0:01:30]} 33. h4 {[%clk 0:00:07]}  g6 {[%clk 0:01:27]} 34. g5 {[%clk 0:00:07]}  f5 {[%clk 0:01:26]} 35. h5 {[%clk 0:00:05]}  e4 {[%clk 0:01:25]} 36. h6 {[%clk 0:00:04]}  Rc6 {[%clk 0:01:18]} 37. Rc3 {[%clk 0:00:05]}  Nd5 {[%clk 0:01:07]} 38. Rc1 {[%clk 0:00:04]}  b4 {[%clk 0:01:07]} 39. Kd2 {[%clk 0:00:03]}  Nc3 {[%clk 0:01:04]} 40. Na4 {[%clk 0:00:02]}  Rd6+ {[%clk 0:00:58]} 41. Kc2 {[%clk 0:00:03]}  Rd3 {[%clk 0:00:50]} 42. Re1 {[%clk 0:00:02]}  Nxa4 {[%clk 0:00:50]} 43. bxa4 {[%clk 0:00:02]}  Ra3 {[%clk 0:00:40]} 44. Kb2 {[%clk 0:00:03]}  Rxa4 {[%clk 0:00:39]} 45. Rc1 {[%clk 0:00:04]}  Ra3 {[%clk 0:00:39]} 46. Rc7+ {[%clk 0:00:04]}  Ke6 {[%clk 0:00:32]} 47. Rxh7 {[%clk 0:00:05]}  Rxe3 {[%clk 0:00:30]} 48. Rh8 {[%clk 0:00:05]}  Kf7 {[%clk 0:00:23]} 49. Ra8 {[%clk 0:00:04]}  Re2+ {[%clk 0:00:18]} 50. Kb3 {[%clk 0:00:04]}  Rxg2 {[%clk 0:00:18]} 51. h7 {[%clk 0:00:04]}  Rh2 {[%clk 0:00:18]} 52. h8=Q {[%clk 0:00:04]}  Rxh8 {[%clk 0:00:18]} 53. Rxh8 {[%clk 0:00:05]}  e3 {[%clk 0:00:15]} 54. Rh3 {[%clk 0:00:03]}  f4 {[%clk 0:00:15]} 55. Rf3 {[%clk 0:00:03]}  Ke6 {[%clk 0:00:12]} 56. Rxf4 {[%clk 0:00:04]}  Ke5 {[%clk 0:00:12]} 57. Rf8 {[%clk 0:00:03]}  Ke4 {[%clk 0:00:10]} 58. Kc4 {[%clk 0:00:03]}  e2 {[%clk 0:00:10]} 59. Re8+ {[%clk 0:00:04]}  Kf3 {[%clk 0:00:11]} 60. Kd3 {[%clk 0:00:05]}  Kf4 {[%clk 0:00:10]} 61. Rxe2 {[%clk 0:00:04]}  Kxg5 {[%clk 0:00:11]} 62. Ke4 {[%clk 0:00:04]}  Kh4 {[%clk 0:00:10]} 63. Kf4 {[%clk 0:00:04]}  g5+ {[%clk 0:00:10]} 64. Kf5 {[%clk 0:00:04]}  b3 {[%clk 0:00:08]} 65. Re3 {[%clk 0:00:03]}  a4 {[%clk 0:00:08]} 66. Re4+ {[%clk 0:00:04]}  Kh3 {[%clk 0:00:08]} 67. Rxa4 {[%clk 0:00:05]}  b2 {[%clk 0:00:08]} 68. Rb4 {[%clk 0:00:05]}  g4 {[%clk 0:00:08]} 69. Rxb2 {[%clk 0:00:05]}  g3 {[%clk 0:00:09]} 70. Kf4 {[%clk 0:00:02]}  g2 {[%clk 0:00:10]} 71. Rb1 {[%clk 0:00:02]}  Kh2 {[%clk 0:00:10]} 72. Rb2 {[%clk 0:00:03]}  Kh1 {[%clk 0:00:10]} 73. Rb1+ {[%clk 0:00:02]}  g1=Q {[%clk 0:00:10]} 74. Rxg1+ {[%clk 0:00:03]}  Kxg1 {[%clk 0:00:10]} 1/2-1/2


[Site "https://www.chess.com"]

[Event "Titled Tuesday Blitz January 18 2022"]
[White "Leitao, Rafael"]
[Black "Brunner, Nicolas"]
[WhiteFideId "2101246"]
[BlackFideId "620246"]
[WhiteElo "2609"]
[BlackElo "2372"]
[Result "1/2-1/2"]
[Round "08"]
[TimeControl "180+1"]
[Date "2022.01.18"]
[WhiteClock "0:00:12"]
[BlackClock "0:00:09"]

1. d4 {[%clk 0:03:00]}  d5 {[%clk 0:02:59]} 2. c4 {[%clk 0:03:00]}  e6 {[%clk 0:02:56]} 3. Nf3 {[%clk 0:02:59]}  Be7 {[%clk 0:02:55]} 4. Nc3 {[%clk 0:02:59]}  Nf6 {[%clk 0:02:54]} 5. Bf4 {[%clk 0:02:58]}  O-O {[%clk 0:02:53]} 6. a3 {[%clk 0:02:55]}  b6 {[%clk 0:02:38]} 7. cxd5 {[%clk 0:02:53]}  Nxd5 {[%clk 0:02:28]} 8. Nxd5 {[%clk 0:02:51]}  Qxd5 {[%clk 0:02:27]} 9. e3 {[%clk 0:02:33]}  c5 {[%clk 0:02:23]} 10. Be2 {[%clk 0:02:30]}  Ba6 {[%clk 0:02:15]} 11. Bxa6 {[%clk 0:02:18]}  Nxa6 {[%clk 0:02:14]} 12. Qe2 {[%clk 0:02:18]}  Qb7 {[%clk 0:02:10]} 13. O-O {[%clk 0:02:09]}  Rac8 {[%clk 0:02:09]} 14. Rac1 {[%clk 0:02:05]}  cxd4 {[%clk 0:02:04]} 15. Nxd4 {[%clk 0:02:02]}  Nc5 {[%clk 0:02:04]} 16. f3 {[%clk 0:01:29]}  a6 {[%clk 0:01:53]} 17. b4 {[%clk 0:01:19]}  Na4 {[%clk 0:01:52]} 18. b5 {[%clk 0:00:46]}  Nc3 {[%clk 0:01:46]} 19. Qd3 {[%clk 0:00:44]}  Nxb5 {[%clk 0:01:44]} 20. Nxb5 {[%clk 0:00:44]}  axb5 {[%clk 0:01:44]} 21. Rb1 {[%clk 0:00:42]}  Ra8 {[%clk 0:01:20]} 22. Qxb5 {[%clk 0:00:38]}  Rxa3 {[%clk 0:01:17]} 23. e4 {[%clk 0:00:26]}  Qa6 {[%clk 0:01:12]} 24. Qxa6 {[%clk 0:00:23]}  Rxa6 {[%clk 0:01:11]} 25. Be3 {[%clk 0:00:23]}  Bc5 {[%clk 0:01:08]} 26. Bxc5 {[%clk 0:00:21]}  bxc5 {[%clk 0:01:08]} 27. Rfc1 {[%clk 0:00:20]}  Rc6 {[%clk 0:01:07]} 28. Rc4 {[%clk 0:00:21]}  g5 {[%clk 0:00:59]} 29. Rb5 {[%clk 0:00:20]}  Rfc8 {[%clk 0:00:59]} 30. Kf2 {[%clk 0:00:20]}  Kg7 {[%clk 0:00:58]} 31. Ke3 {[%clk 0:00:20]}  Kf6 {[%clk 0:00:58]} 32. g3 {[%clk 0:00:21]}  Ke5 {[%clk 0:00:54]} 33. f4+ {[%clk 0:00:21]}  gxf4+ {[%clk 0:00:55]} 34. gxf4+ {[%clk 0:00:21]}  Kd6 {[%clk 0:00:55]} 35. Rb3 {[%clk 0:00:18]}  Ra8 {[%clk 0:00:52]} 36. Rd3+ {[%clk 0:00:18]}  Ke7 {[%clk 0:00:53]} 37. Rdc3 {[%clk 0:00:18]}  Ra2 {[%clk 0:00:51]} 38. Rxc5 {[%clk 0:00:18]}  Rxc5 {[%clk 0:00:50]} 39. Rxc5 {[%clk 0:00:18]}  Rxh2 {[%clk 0:00:51]} 40. Kf3 {[%clk 0:00:16]}  Kf6 {[%clk 0:00:48]} 41. Kg3 {[%clk 0:00:16]}  Rh1 {[%clk 0:00:47]} 42. Rc8 {[%clk 0:00:14]}  Ra1 {[%clk 0:00:46]} 43. Rh8 {[%clk 0:00:13]}  Kg7 {[%clk 0:00:46]} 44. Rc8 {[%clk 0:00:13]}  Ra4 {[%clk 0:00:46]} 45. Kf3 {[%clk 0:00:13]}  Kg6 {[%clk 0:00:45]} 46. Rg8+ {[%clk 0:00:13]}  Kf6 {[%clk 0:00:45]} 47. Rg1 {[%clk 0:00:12]}  Ra3+ {[%clk 0:00:40]} 48. Kg4 {[%clk 0:00:12]}  Re3 {[%clk 0:00:40]} 49. e5+ {[%clk 0:00:12]}  Kg6 {[%clk 0:00:38]} 50. Rh1 {[%clk 0:00:10]}  h6 {[%clk 0:00:29]} 51. Rh2 {[%clk 0:00:10]}  Ra3 {[%clk 0:00:27]} 52. Rh1 {[%clk 0:00:10]}  Ra2 {[%clk 0:00:21]} 53. Kf3 {[%clk 0:00:10]}  h5 {[%clk 0:00:21]} 54. Rg1+ {[%clk 0:00:11]}  Kh6 {[%clk 0:00:20]} 55. Rg8 {[%clk 0:00:11]}  Ra3+ {[%clk 0:00:18]} 56. Kg2 {[%clk 0:00:11]}  Ra4 {[%clk 0:00:14]} 57. Kf3 {[%clk 0:00:11]}  Ra3+ {[%clk 0:00:14]} 58. Kg2 {[%clk 0:00:12]}  Rd3 {[%clk 0:00:14]} 59. Kf2 {[%clk 0:00:12]}  Rb3 {[%clk 0:00:13]} 60. Kg2 {[%clk 0:00:12]}  Rb1 {[%clk 0:00:10]} 61. Kf2 {[%clk 0:00:12]}  Ra1 {[%clk 0:00:10]} 62. Kf3 {[%clk 0:00:12]}  Ra3+ {[%clk 0:00:09]} 1/2-1/2


[Site "https://www.chess.com"]

[Event "Titled Tuesday Blitz January 18 2022"]
[White "Lomaia, Diana"]
[Black "Manukyan, Artyom"]
[WhiteFideId "13612476"]
[BlackFideId "13305786"]
[WhiteElo "1744"]
[BlackElo "2034"]
[Result "1/2-1/2"]
[Round "08"]
[TimeControl "180+1"]
[Date "2022.01.18"]
[WhiteClock "0:00:18"]
[BlackClock "0:00:09"]

1. d4 {[%clk 0:03:00]}  d5 {[%clk 0:02:59]} 2. Nf3 {[%clk 0:02:59]}  Nf6 {[%clk 0:02:59]} 3. c4 {[%clk 0:02:57]}  e6 {[%clk 0:03:00]} 4. Nc3 {[%clk 0:02:57]}  c5 {[%clk 0:03:00]} 5. cxd5 {[%clk 0:02:57]}  Nxd5 {[%clk 0:03:01]} 6. e4 {[%clk 0:02:55]}  Nxc3 {[%clk 0:03:01]} 7. bxc3 {[%clk 0:02:55]}  cxd4 {[%clk 0:03:02]} 8. cxd4 {[%clk 0:02:55]}  Bb4+ {[%clk 0:03:03]} 9. Bd2 {[%clk 0:02:55]}  Bxd2+ {[%clk 0:03:04]} 10. Qxd2 {[%clk 0:02:55]}  O-O {[%clk 0:03:05]} 11. Be2 {[%clk 0:02:54]}  b6 {[%clk 0:03:03]} 12. O-O {[%clk 0:02:53]}  Bb7 {[%clk 0:03:03]} 13. Bd3 {[%clk 0:02:51]}  Nc6 {[%clk 0:03:03]} 14. Bc2 {[%clk 0:02:47]}  Rc8 {[%clk 0:03:01]} 15. Rad1 {[%clk 0:02:46]}  Qf6 {[%clk 0:03:01]} 16. Bb1 {[%clk 0:02:43]}  Qh6 {[%clk 0:02:59]} 17. Qxh6 {[%clk 0:02:41]}  gxh6 {[%clk 0:03:00]} 18. d5 {[%clk 0:02:37]}  exd5 {[%clk 0:03:00]} 19. exd5 {[%clk 0:02:37]}  Na5 {[%clk 0:02:58]} 20. Rd4 {[%clk 0:02:30]}  Rfd8 {[%clk 0:02:56]} 21. d6 {[%clk 0:02:24]}  Bxf3 {[%clk 0:02:12]} 22. gxf3 {[%clk 0:02:23]}  Rc4 {[%clk 0:02:11]} 23. Rfd1 {[%clk 0:02:16]}  Kf8 {[%clk 0:02:11]} 24. Bxh7 {[%clk 0:02:12]}  Rxd4 {[%clk 0:01:35]} 25. Rxd4 {[%clk 0:02:10]}  Nb7 {[%clk 0:01:35]} 26. d7 {[%clk 0:02:03]}  Ke7 {[%clk 0:01:33]} 27. Rh4 {[%clk 0:01:58]}  Rxd7 {[%clk 0:01:13]} 28. Rxh6 {[%clk 0:01:58]}  Rd2 {[%clk 0:01:11]} 29. Rc6 {[%clk 0:01:47]}  Kd7 {[%clk 0:01:10]} 30. Rc2 {[%clk 0:01:46]}  Rd4 {[%clk 0:01:04]} 31. Bf5+ {[%clk 0:01:42]}  Kd6 {[%clk 0:01:01]} 32. Rc8 {[%clk 0:01:40]}  Ke5 {[%clk 0:00:55]} 33. Be4 {[%clk 0:01:33]}  Nd6 {[%clk 0:00:53]} 34. Rc7 {[%clk 0:01:31]}  Ra4 {[%clk 0:00:48]} 35. Re7+ {[%clk 0:01:25]}  Kf6 {[%clk 0:00:46]} 36. Rd7 {[%clk 0:01:19]}  Ke6 {[%clk 0:00:38]} 37. Rc7 {[%clk 0:01:10]}  Rxa2 {[%clk 0:00:32]} 38. h4 {[%clk 0:01:11]}  Ra4 {[%clk 0:00:26]} 39. Kg2 {[%clk 0:00:59]}  f5 {[%clk 0:00:22]} 40. Bc2 {[%clk 0:00:54]}  Rxh4 {[%clk 0:00:22]} 41. Rxa7 {[%clk 0:00:54]}  b5 {[%clk 0:00:20]} 42. Ra5 {[%clk 0:00:49]}  Rd4 {[%clk 0:00:18]} 43. Kg3 {[%clk 0:00:46]}  Kf6 {[%clk 0:00:18]} 44. Ra6 {[%clk 0:00:45]}  Rd2 {[%clk 0:00:17]} 45. Rc6 {[%clk 0:00:45]}  Ke5 {[%clk 0:00:15]} 46. Bb1 {[%clk 0:00:42]}  Rd4 {[%clk 0:00:12]} 47. f4+ {[%clk 0:00:40]}  Kf6 {[%clk 0:00:10]} 48. Rc5 {[%clk 0:00:39]}  b4 {[%clk 0:00:09]} 49. Kf3 {[%clk 0:00:36]}  b3 {[%clk 0:00:07]} 50. Rc6 {[%clk 0:00:33]}  Rd1 {[%clk 0:00:07]} 51. Rb6 {[%clk 0:00:31]}  Rxb1 {[%clk 0:00:03]} 52. Rxd6+ {[%clk 0:00:32]}  Ke7 {[%clk 0:00:03]} 53. Rb6 {[%clk 0:00:32]}  Kf7 {[%clk 0:00:03]} 54. Rb5 {[%clk 0:00:29]}  Kf6 {[%clk 0:00:03]} 55. Rb6+ {[%clk 0:00:29]}  Ke7 {[%clk 0:00:04]} 56. Ke3 {[%clk 0:00:24]}  b2 {[%clk 0:00:03]} 57. Kf3 {[%clk 0:00:21]}  Kd7 {[%clk 0:00:02]} 58. Rb5 {[%clk 0:00:20]}  Kd6 {[%clk 0:00:02]} 59. Rb8 {[%clk 0:00:21]}  Kd5 {[%clk 0:00:03]} 60. Rd8+ {[%clk 0:00:21]}  Kc4 {[%clk 0:00:03]} 61. Rc8+ {[%clk 0:00:21]}  Kd3 {[%clk 0:00:04]} 62. Rd8+ {[%clk 0:00:21]}  Kc2 {[%clk 0:00:04]} 63. Rc8+ {[%clk 0:00:22]}  Kd1 {[%clk 0:00:05]} 64. Rd8+ {[%clk 0:00:22]}  Ke1 {[%clk 0:00:06]} 65. Re8+ {[%clk 0:00:21]}  Kd1 {[%clk 0:00:06]} 66. Rd8+ {[%clk 0:00:20]}  Kc2 {[%clk 0:00:07]} 67. Rc8+ {[%clk 0:00:21]}  Kb3 {[%clk 0:00:08]} 68. Rb8+ {[%clk 0:00:21]}  Kc4 {[%clk 0:00:08]} 69. Rc8+ {[%clk 0:00:21]}  Kd5 {[%clk 0:00:09]} 70. Rd8+ {[%clk 0:00:21]}  Ke6 {[%clk 0:00:09]} 71. Rb8 {[%clk 0:00:21]}  Kd7 {[%clk 0:00:10]} 72. Rb5 {[%clk 0:00:20]}  Kc7 {[%clk 0:00:11]} 73. Rb3 {[%clk 0:00:18]}  Kc6 {[%clk 0:00:11]} 74. Rb8 {[%clk 0:00:18]}  Kd7 {[%clk 0:00:11]} 75. Rb3 {[%clk 0:00:18]}  Ke7 {[%clk 0:00:11]} 76. Rb5 {[%clk 0:00:18]}  Kd6 {[%clk 0:00:09]} 77. Rb6+ {[%clk 0:00:18]}  Kc5 {[%clk 0:00:09]} 78. Rb8 {[%clk 0:00:18]}  Kc4 {[%clk 0:00:09]} 79. Rc8+ {[%clk 0:00:18]} 1/2-1/2


[Site "https://www.chess.com"]

[Event "Titled Tuesday Blitz January 18 2022"]
[White "Maksimovic, Bojan"]
[Black "Tabatabaei, M. Amin"]
[WhiteFideId "14408120"]
[BlackFideId "12521213"]
[WhiteElo "2450"]
[BlackElo "2585"]
[Result "0-1"]
[Round "08"]
[TimeControl "180+1"]
[Date "2022.01.18"]
[WhiteClock "0:00:03"]
[BlackClock "0:00:11"]

1. d4 {[%clk 0:03:00]}  e6 {[%clk 0:02:55]} 2. e4 {[%clk 0:02:58]}  d5 {[%clk 0:02:54]} 3. Nc3 {[%clk 0:02:59]}  Nf6 {[%clk 0:02:53]} 4. Bg5 {[%clk 0:02:58]}  dxe4 {[%clk 0:02:52]} 5. Nxe4 {[%clk 0:02:59]}  Nbd7 {[%clk 0:02:52]} 6. Nf3 {[%clk 0:02:56]}  h6 {[%clk 0:02:51]} 7. Nxf6+ {[%clk 0:02:55]}  Nxf6 {[%clk 0:02:52]} 8. Bh4 {[%clk 0:02:55]}  c5 {[%clk 0:02:44]} 9. c3 {[%clk 0:02:47]}  cxd4 {[%clk 0:02:38]} 10. Nxd4 {[%clk 0:02:47]}  Be7 {[%clk 0:02:37]} 11. Bd3 {[%clk 0:02:46]}  O-O {[%clk 0:02:37]} 12. O-O {[%clk 0:02:46]}  Qb6 {[%clk 0:02:36]} 13. Qe2 {[%clk 0:02:43]}  Rd8 {[%clk 0:02:35]} 14. Rad1 {[%clk 0:02:42]}  Bd7 {[%clk 0:02:34]} 15. Rfe1 {[%clk 0:02:40]}  Re8 {[%clk 0:02:32]} 16. Nf3 {[%clk 0:02:31]}  Rad8 {[%clk 0:02:29]} 17. Ne5 {[%clk 0:02:30]}  Bc8 {[%clk 0:02:28]} 18. Bb1 {[%clk 0:02:28]}  Rxd1 {[%clk 0:02:27]} 19. Rxd1 {[%clk 0:02:29]}  Rd8 {[%clk 0:02:25]} 20. Re1 {[%clk 0:01:42]}  a5 {[%clk 0:02:15]} 21. h3 {[%clk 0:01:38]}  a4 {[%clk 0:02:15]} 22. Qc2 {[%clk 0:01:36]}  a3 {[%clk 0:02:13]} 23. b3 {[%clk 0:01:19]}  Qd6 {[%clk 0:02:13]} 24. Ng4 {[%clk 0:00:44]}  Kf8 {[%clk 0:02:06]} 25. Nxf6 {[%clk 0:00:43]}  Bxf6 {[%clk 0:02:07]} 26. Bxf6 {[%clk 0:00:42]}  gxf6 {[%clk 0:02:08]} 27. Qh7 {[%clk 0:00:42]}  Qd2 {[%clk 0:02:07]} 28. Rf1 {[%clk 0:00:41]}  Ke7 {[%clk 0:01:52]} 29. c4 {[%clk 0:00:40]}  Bd7 {[%clk 0:01:52]} 30. Qg7 {[%clk 0:00:24]}  Bc6 {[%clk 0:01:39]} 31. Qg3 {[%clk 0:00:24]}  Qg5 {[%clk 0:01:38]} 32. Qh2 {[%clk 0:00:10]}  f5 {[%clk 0:01:31]} 33. h4 {[%clk 0:00:10]}  Qg4 {[%clk 0:01:31]} 34. f3 {[%clk 0:00:07]}  Qd4+ {[%clk 0:01:31]} 35. Kh1 {[%clk 0:00:08]}  Qd6 {[%clk 0:01:31]} 36. Qg1 {[%clk 0:00:07]}  Qd4 {[%clk 0:01:19]} 37. Qh2 {[%clk 0:00:07]}  f4 {[%clk 0:01:13]} 38. h5 {[%clk 0:00:07]}  Rg8 {[%clk 0:01:13]} 39. Qh4+ {[%clk 0:00:06]}  Qf6 {[%clk 0:01:14]} 40. Qxf6+ {[%clk 0:00:04]}  Kxf6 {[%clk 0:01:15]} 41. Rd1 {[%clk 0:00:04]}  Rg5 {[%clk 0:01:13]} 42. b4 {[%clk 0:00:04]}  Ba4 {[%clk 0:00:52]} 43. Rd6 {[%clk 0:00:03]}  Re5 {[%clk 0:00:46]} 44. Kh2 {[%clk 0:00:03]}  Re1 {[%clk 0:00:47]} 45. Be4 {[%clk 0:00:03]}  Re2 {[%clk 0:00:40]} 46. Bxb7 {[%clk 0:00:02]}  Rxa2 {[%clk 0:00:40]} 47. Ra6 {[%clk 0:00:03]}  Bb3 {[%clk 0:00:40]} 48. c5 {[%clk 0:00:04]}  Bc4 {[%clk 0:00:38]} 49. Ra5 {[%clk 0:00:03]}  Ke7 {[%clk 0:00:32]} 50. b5 {[%clk 0:00:03]}  Ra1 {[%clk 0:00:33]} 51. b6 {[%clk 0:00:03]}  a2 {[%clk 0:00:18]} 52. c6 {[%clk 0:00:03]}  Bd5 {[%clk 0:00:18]} 53. Rxd5 {[%clk 0:00:04]}  exd5 {[%clk 0:00:19]} 54. c7 {[%clk 0:00:04]}  Rc1 {[%clk 0:00:19]} 55. Bc6 {[%clk 0:00:03]}  a1=Q {[%clk 0:00:11]} 0-1


[Site "https://www.chess.com"]

[Event "Titled Tuesday Blitz January 18 2022"]
[White "Moskalenko, Alexander"]
[Black "Erdogdu, Mert"]
[WhiteFideId "4155351"]
[BlackFideId "6301495"]
[WhiteElo "2515"]
[BlackElo "2485"]
[Result "1-0"]
[Round "08"]
[TimeControl "180+1"]
[Date "2022.01.18"]
[WhiteClock "0:01:57"]
[BlackClock "0:00:51"]

1. e4 {[%clk 0:03:00]}  c5 {[%clk 0:02:59]} 2. Nf3 {[%clk 0:03:01]}  d6 {[%clk 0:02:59]} 3. d4 {[%clk 0:03:01]}  cxd4 {[%clk 0:02:59]} 4. Nxd4 {[%clk 0:03:02]}  Nf6 {[%clk 0:03:00]} 5. Nc3 {[%clk 0:03:03]}  a6 {[%clk 0:03:00]} 6. Bc4 {[%clk 0:03:02]}  e6 {[%clk 0:03:00]} 7. Bb3 {[%clk 0:03:03]}  b5 {[%clk 0:02:58]} 8. Bg5 {[%clk 0:03:03]}  Nbd7 {[%clk 0:02:50]} 9. O-O {[%clk 0:02:38]}  Nc5 {[%clk 0:02:48]} 10. f4 {[%clk 0:02:33]}  Qb6 {[%clk 0:02:27]} 11. Kh1 {[%clk 0:02:30]}  Bb7 {[%clk 0:02:15]} 12. f5 {[%clk 0:02:20]}  e5 {[%clk 0:01:42]} 13. Bxf6 {[%clk 0:02:18]}  gxf6 {[%clk 0:01:42]} 14. Nd5 {[%clk 0:02:14]}  Qd8 {[%clk 0:01:37]} 15. Ne6 {[%clk 0:02:03]}  fxe6 {[%clk 0:01:30]} 16. fxe6 {[%clk 0:02:04]}  h5 {[%clk 0:00:59]} 17. Nxf6+ {[%clk 0:02:00]}  Ke7 {[%clk 0:00:58]} 18. Nd5+ {[%clk 0:02:00]}  Ke8 {[%clk 0:00:51]} 19. Qf3 {[%clk 0:01:57]} 1-0


[Site "https://www.chess.com"]

[Event "Titled Tuesday Blitz January 18 2022"]
[White "Nakamura, Hikaru"]
[Black "Sarana, Alexey"]
[WhiteFideId "2016192"]
[BlackFideId "24133795"]
[WhiteElo "2850"]
[BlackElo "2665"]
[Result "1-0"]
[Round "08"]
[TimeControl "180+1"]
[Date "2022.01.18"]
[WhiteClock "0:00:52"]
[BlackClock "0:00:07"]

1. e4 {[%clk 0:03:00]}  c5 {[%clk 0:03:00]} 2. Nf3 {[%clk 0:02:59]}  d6 {[%clk 0:03:01]} 3. c3 {[%clk 0:02:57]}  Nf6 {[%clk 0:03:01]} 4. h3 {[%clk 0:02:58]}  g6 {[%clk 0:03:01]} 5. Bd3 {[%clk 0:02:58]}  Bg7 {[%clk 0:03:02]} 6. Bc2 {[%clk 0:02:59]}  O-O {[%clk 0:03:02]} 7. d4 {[%clk 0:02:59]}  cxd4 {[%clk 0:03:02]} 8. cxd4 {[%clk 0:03:00]}  Nc6 {[%clk 0:03:03]} 9. O-O {[%clk 0:03:00]}  e5 {[%clk 0:03:03]} 10. d5 {[%clk 0:02:58]}  Nb4 {[%clk 0:03:04]} 11. Bb3 {[%clk 0:02:58]}  Nxe4 {[%clk 0:03:04]} 12. Qe1 {[%clk 0:02:57]}  Nxf2 {[%clk 0:03:05]} 13. Qxb4 {[%clk 0:02:43]}  Nd3 {[%clk 0:03:05]} 14. Qd2 {[%clk 0:02:39]}  e4 {[%clk 0:03:02]} 15. Ne1 {[%clk 0:02:37]}  Nxc1 {[%clk 0:02:29]} 16. Qxc1 {[%clk 0:02:38]}  Qh4 {[%clk 0:02:29]} 17. Qd2 {[%clk 0:02:16]}  e3 {[%clk 0:02:17]} 18. Qe2 {[%clk 0:02:14]}  Bf5 {[%clk 0:01:29]} 19. Nc3 {[%clk 0:02:07]}  Rae8 {[%clk 0:01:29]} 20. Nb5 {[%clk 0:01:31]}  Qg3 {[%clk 0:01:11]} 21. Rf3 {[%clk 0:01:06]}  Qe5 {[%clk 0:01:11]} 22. Rxf5 {[%clk 0:01:06]}  gxf5 {[%clk 0:00:52]} 23. Nd3 {[%clk 0:01:06]}  Qf6 {[%clk 0:00:49]} 24. Rf1 {[%clk 0:01:05]}  a6 {[%clk 0:00:49]} 25. Nc3 {[%clk 0:01:05]}  Qg6 {[%clk 0:00:46]} 26. Bc2 {[%clk 0:01:03]}  Re7 {[%clk 0:00:39]} 27. Ne1 {[%clk 0:01:01]}  b5 {[%clk 0:00:21]} 28. Rxf5 {[%clk 0:00:57]}  Qh6 {[%clk 0:00:18]} 29. Rh5 {[%clk 0:00:54]}  Qf6 {[%clk 0:00:18]} 30. Bxh7+ {[%clk 0:00:54]}  Kh8 {[%clk 0:00:18]} 31. Bd3+ {[%clk 0:00:55]}  Bh6 {[%clk 0:00:17]} 32. Ne4 {[%clk 0:00:55]}  Qg7 {[%clk 0:00:10]} 33. Nxd6 {[%clk 0:00:54]}  Re5 {[%clk 0:00:07]} 34. Nf5 {[%clk 0:00:52]} 1-0


[Site "https://www.chess.com"]